[Event "*** Titled Tuesday Blitz"]
[Site "Chess.com"]
[Date "2021.03.30"]
[Round "5"]
[White "ChessQueen"]
[Black "PlotnikovPavel"]
[Result "1-0"]
[WhiteElo "2715"]
[BlackElo "2509"]
[TimeControl "180+1"]
[EndTime "10:55:30 PDT"]
[Termination "ChessQueen won on time"]

1. e4 {[%clk 0:03:00.9]} 1... e6 {[%clk 0:02:59.3]} 2. d4 {[%clk 0:03:00.4]}
2... d5 {[%clk 0:02:59.5]} 3. Nc3 {[%clk 0:02:59.4]} 3... Nf6 {[%clk 0:02:59.3]}
4. Bg5 {[%clk 0:02:58.4]} 4... Be7 {[%clk 0:02:58.2]} 5. e5 {[%clk 0:02:58.1]}
5... Nfd7 {[%clk 0:02:58.1]} 6. h4 {[%clk 0:02:58.2]} 6... a6 {[%clk 0:02:49.5]}
7. Bd3 {[%clk 0:02:47.9]} 7... c5 {[%clk 0:02:46.8]} 8. Qg4 {[%clk 0:02:27.8]}
8... h5 {[%clk 0:02:19.3]} 9. Qg3 {[%clk 0:02:20.1]} 9... Bxg5 {[%clk 0:02:16]}
10. hxg5 {[%clk 0:02:16.6]} 10... g6 {[%clk 0:02:16]} 11. f4 {[%clk 0:02:08.8]}
11... cxd4 {[%clk 0:02:11.5]} 12. Nce2 {[%clk 0:02:08.6]} 12... Qa5+ {[%clk
0:02:11.1]} 13. Kf2 {[%clk 0:02:02.5]} 13... Nc6 {[%clk 0:02:08.9]} 14. Nf3
{[%clk 0:02:01.6]} 14... Nc5 {[%clk 0:01:54.6]} 15. Rhd1 {[%clk 0:01:49.5]}
15... Qb6 {[%clk 0:01:47.8]} 16. Nfxd4 {[%clk 0:01:23.1]} 16... Nxd4 {[%clk
0:01:33.5]} 17. Nxd4 {[%clk 0:01:22.8]} 17... Qxb2 {[%clk 0:01:08.6]} 18. Qe3
{[%clk 0:01:16.4]} 18... Qc3 {[%clk 0:00:34.5]} 19. Rab1 {[%clk 0:01:05.8]}
19... O-O {[%clk 0:00:27.4]} 20. g4 {[%clk 0:00:40.8]} 20... hxg4 {[%clk
0:00:25.3]} 21. Ne2 {[%clk 0:00:29.9]} 21... Qa5 {[%clk 0:00:18]} 22. Rh1 {[%clk
0:00:28.8]} 22... Kg7 {[%clk 0:00:17.3]} 23. Rh4 {[%clk 0:00:22.9]} 23... Bd7
{[%clk 0:00:13.6]} 24. Rbh1 {[%clk 0:00:14.2]} 24... Rh8 {[%clk 0:00:13.6]} 25.
f5 {[%clk 0:00:14.4]} 25... exf5 {[%clk 0:00:11.4]} 26. e6 {[%clk 0:00:14.9]}
26... Nxd3+ {[%clk 0:00:10.1]} 27. cxd3 {[%clk 0:00:13.7]} 27... Rxh4 {[%clk
0:00:06.9]} 28. Qe5+ {[%clk 0:00:12]} 28... Kf8 {[%clk 0:00:04.2]} 29. e7+
{[%clk 0:00:09]} 29... Ke8 {[%clk 0:00:03.9]} 30. Rxh4 {[%clk 0:00:09.9]} 30...
Qc5+ {[%clk 0:00:03.7]} 31. d4 {[%clk 0:00:08.9]} 1-0

[Event "*** Titled Tuesday Blitz"]
[Site "Chess.com"]
[Date "2021.03.30"]
[Round "5"]
[White "Raud100"]
[Black "Yurovskykh_Oleksandr"]
[Result "0-1"]
[WhiteElo "2381"]
[BlackElo "2528"]
[TimeControl "180+1"]
[EndTime "10:55:30 PDT"]
[Termination "Yurovskykh_Oleksandr won on time"]

1. d4 {[%clk 0:03:00.9]} 1... d5 {[%clk 0:02:57.9]} 2. c4 {[%clk 0:03:00.3]}
2... dxc4 {[%clk 0:02:55.4]} 3. e4 {[%clk 0:03:00]} 3... Nf6 {[%clk 0:02:55.3]}
4. Nc3 {[%clk 0:02:59.6]} 4... e5 {[%clk 0:02:55.2]} 5. Nf3 {[%clk 0:02:59.4]}
5... exd4 {[%clk 0:02:54]} 6. Qxd4 {[%clk 0:03:00.3]} 6... Qxd4 {[%clk
0:02:53.6]} 7. Nxd4 {[%clk 0:03:01.2]} 7... Bc5 {[%clk 0:02:54.1]} 8. Ndb5
{[%clk 0:02:54.1]} 8... Na6 {[%clk 0:02:52.4]} 9. Bxc4 {[%clk 0:02:51.4]} 9...
c6 {[%clk 0:02:52.1]} 10. Na3 {[%clk 0:02:49.3]} 10... b5 {[%clk 0:02:52.2]} 11.
Naxb5 {[%clk 0:02:30.3]} 11... cxb5 {[%clk 0:02:52]} 12. Bxb5+ {[%clk
0:02:31.2]} 12... Nd7 {[%clk 0:02:34]} 13. Nd5 {[%clk 0:02:15]} 13... O-O {[%clk
0:02:32.4]} 14. O-O {[%clk 0:02:13.2]} 14... Nb4 {[%clk 0:02:26.3]} 15. Rd1
{[%clk 0:02:10.8]} 15... Nb6 {[%clk 0:01:56.1]} 16. Nc7 {[%clk 0:01:49.9]} 16...
Bg4 {[%clk 0:01:48.8]} 17. Rf1 {[%clk 0:01:15.7]} 17... Rac8 {[%clk 0:01:32.7]}
18. Bf4 {[%clk 0:01:13.4]} 18... Bd7 {[%clk 0:00:58.6]} 19. Be2 {[%clk 0:01:05]}
19... Nc2 {[%clk 0:00:56.2]} 20. Rac1 {[%clk 0:01:03.3]} 20... Nd4 {[%clk
0:00:48.2]} 21. Ba6 {[%clk 0:01:01.2]} 21... Bb4 {[%clk 0:00:44.1]} 22. Bxc8
{[%clk 0:00:46.1]} 22... Rxc8 {[%clk 0:00:45]} 23. Kh1 {[%clk 0:00:23.9]} 23...
Ne2 {[%clk 0:00:44.3]} 24. Nd5 {[%clk 0:00:16]} 24... Nxc1 {[%clk 0:00:25.5]}
25. Nxb4 {[%clk 0:00:04.6]} 25... Ne2 {[%clk 0:00:24.6]} 26. Be3 {[%clk
0:00:04.4]} 26... Nc4 {[%clk 0:00:17.1]} 27. Bxa7 {[%clk 0:00:03.2]} 27... Nf4
{[%clk 0:00:17.1]} 28. h3 {[%clk 0:00:03]} 28... Ne6 {[%clk 0:00:15.9]} 29. b3
{[%clk 0:00:02.9]} 29... Nd6 {[%clk 0:00:16]} 30. f3 {[%clk 0:00:02.5]} 30...
Nb5 {[%clk 0:00:16]} 31. Bf2 {[%clk 0:00:01.2]} 31... Be8 {[%clk 0:00:16.4]} 32.
Rd1 {[%clk 0:00:01.3]} 32... g6 {[%clk 0:00:16.3]} 33. Nd5 {[%clk 0:00:01.2]}
33... Kf8 {[%clk 0:00:15.4]} 34. Bh4 {[%clk 0:00:01.4]} 34... Nbc7 {[%clk
0:00:14.8]} 0-1

[Event "*** Titled Tuesday Blitz"]
[Site "Chess.com"]
[Date "2021.03.30"]
[Round "5"]
[White "julinha97"]
[Black "KNVB"]
[Result "0-1"]
[WhiteElo "2283"]
[BlackElo "2653"]
[TimeControl "180+1"]
[EndTime "10:55:33 PDT"]
[Termination "KNVB won by resignation"]

1. e4 {[%clk 0:03:00.9]} 1... c6 {[%clk 0:02:59]} 2. d4 {[%clk 0:03:00.5]} 2...
d5 {[%clk 0:02:55.6]} 3. e5 {[%clk 0:03:01]} 3... Bf5 {[%clk 0:02:54.2]} 4. h4
{[%clk 0:03:00.9]} 4... h5 {[%clk 0:02:53.5]} 5. Bd3 {[%clk 0:03:00.2]} 5...
Bxd3 {[%clk 0:02:53]} 6. Qxd3 {[%clk 0:03:01.1]} 6... e6 {[%clk 0:02:53.5]} 7.
Bg5 {[%clk 0:03:01.2]} 7... Qb6 {[%clk 0:02:53.5]} 8. Nd2 {[%clk 0:03:00.4]}
8... Qa6 {[%clk 0:02:53.5]} 9. c4 {[%clk 0:02:59.6]} 9... Be7 {[%clk 0:02:52.7]}
10. Ngf3 {[%clk 0:02:58.7]} 10... Nd7 {[%clk 0:02:52.6]} 11. Qc3 {[%clk
0:02:56.4]} 11... Bxg5 {[%clk 0:02:48.1]} 12. Nxg5 {[%clk 0:02:53.8]} 12... Ne7
{[%clk 0:02:46.9]} 13. O-O {[%clk 0:02:51.3]} 13... dxc4 {[%clk 0:02:04.2]} 14.
Nxc4 {[%clk 0:02:45.8]} 14... Nf5 {[%clk 0:02:04.7]} 15. Rac1 {[%clk 0:02:31.9]}
15... O-O {[%clk 0:01:58.3]} 16. Qf3 {[%clk 0:02:24.9]} 16... g6 {[%clk
0:01:55.3]} 17. Qf4 {[%clk 0:02:21]} 17... Nb6 {[%clk 0:01:42.2]} 18. Ne3 {[%clk
0:02:18.5]} 18... Nd5 {[%clk 0:01:37.8]} 19. Nxd5 {[%clk 0:02:03.1]} 19... cxd5
{[%clk 0:01:38.7]} 20. g4 {[%clk 0:01:52.5]} 20... hxg4 {[%clk 0:01:28.4]} 21.
Qxg4 {[%clk 0:01:50.8]} 21... Qb6 {[%clk 0:00:44.4]} 22. Rfd1 {[%clk 0:01:38.6]}
22... Kg7 {[%clk 0:00:38]} 23. h5 {[%clk 0:01:29.8]} 23... Rh8 {[%clk
0:00:33.2]} 24. hxg6 {[%clk 0:01:17]} 24... Rh4 {[%clk 0:00:31.5]} 25. Qf3
{[%clk 0:01:04.2]} 25... Kxg6 {[%clk 0:00:18.4]} 26. Nh3 {[%clk 0:00:50.2]}
26... Rg8 {[%clk 0:00:16.2]} 27. Kf1 {[%clk 0:00:32.6]} 27... Kh7 {[%clk
0:00:13.2]} 28. Nf4 {[%clk 0:00:23.9]} 28... Rgg4 {[%clk 0:00:08.9]} 29. Ng2
{[%clk 0:00:10.7]} 29... Qb5+ {[%clk 0:00:07.1]} 30. Rd3 {[%clk 0:00:03.4]}
30... Rh1+ {[%clk 0:00:05.9]} 31. Ke2 {[%clk 0:00:03.7]} 31... Re4+ {[%clk
0:00:05.4]} 32. Ne3 {[%clk 0:00:02.2]} 32... Nxd4+ {[%clk 0:00:05.4]} 0-1

[Event "*** Titled Tuesday Blitz"]
[Site "Chess.com"]
[Date "2021.03.30"]
[Round "5"]
[White "Nemsko"]
[Black "MuhittinBuker"]
[Result "1-0"]
[WhiteElo "2332"]
[BlackElo "2197"]
[TimeControl "180+1"]
[EndTime "10:55:34 PDT"]
[Termination "Nemsko won on time"]

1. e4 {[%clk 0:03:00.9]} 1... e5 {[%clk 0:02:58.9]} 2. Nf3 {[%clk 0:03:01.3]}
2... Nc6 {[%clk 0:02:57.9]} 3. Bb5 {[%clk 0:03:00.8]} 3... a6 {[%clk 0:02:56.8]}
4. Ba4 {[%clk 0:03:00.6]} 4... Nf6 {[%clk 0:02:57.1]} 5. O-O {[%clk 0:03:00.6]}
5... Be7 {[%clk 0:02:57.6]} 6. Re1 {[%clk 0:02:58.4]} 6... b5 {[%clk 0:02:58]}
7. Bb3 {[%clk 0:02:58.4]} 7... O-O {[%clk 0:02:58.5]} 8. h3 {[%clk 0:02:56.9]}
8... d6 {[%clk 0:02:58]} 9. c3 {[%clk 0:02:56.7]} 9... Na5 {[%clk 0:02:58.2]}
10. Bc2 {[%clk 0:02:56.8]} 10... c5 {[%clk 0:02:58.7]} 11. d4 {[%clk 0:02:56.9]}
11... Qc7 {[%clk 0:02:58.1]} 12. d5 {[%clk 0:02:57.3]} 12... c4 {[%clk
0:02:57.9]} 13. Nbd2 {[%clk 0:02:55.9]} 13... Nb7 {[%clk 0:02:57.8]} 14. Nf1
{[%clk 0:02:56]} 14... Bd7 {[%clk 0:02:55.3]} 15. Ng3 {[%clk 0:02:55.7]} 15...
g6 {[%clk 0:02:55.2]} 16. Bh6 {[%clk 0:02:53.7]} 16... Rfe8 {[%clk 0:02:54.8]}
17. Qd2 {[%clk 0:02:52.5]} 17... a5 {[%clk 0:02:52.9]} 18. b3 {[%clk 0:02:49.1]}
18... Rac8 {[%clk 0:02:40.9]} 19. Re3 {[%clk 0:02:32.2]} 19... cxb3 {[%clk
0:02:31.1]} 20. axb3 {[%clk 0:02:33.1]} 20... b4 {[%clk 0:02:04.1]} 21. c4
{[%clk 0:02:31.8]} 21... a4 {[%clk 0:02:04]} 22. Ree1 {[%clk 0:02:25.6]} 22...
a3 {[%clk 0:02:02.9]} 23. Qxb4 {[%clk 0:02:18.7]} 23... Ra8 {[%clk 0:01:48.9]}
24. Rxa3 {[%clk 0:02:13.9]} 24... Rxa3 {[%clk 0:01:48]} 25. Qxa3 {[%clk
0:02:14.8]} 25... Nc5 {[%clk 0:01:47.9]} 26. b4 {[%clk 0:02:11.9]} 26... Nb7
{[%clk 0:01:38.1]} 27. Bd3 {[%clk 0:01:51.5]} 27... Rb8 {[%clk 0:01:07.8]} 28.
Be3 {[%clk 0:01:45]} 28... Nd8 {[%clk 0:01:04.7]} 29. Rb1 {[%clk 0:01:35.1]}
29... Ne8 {[%clk 0:01:03.5]} 30. c5 {[%clk 0:01:22.3]} 30... Bb5 {[%clk
0:00:56]} 31. Bxb5 {[%clk 0:01:13.9]} 31... Rxb5 {[%clk 0:00:55.3]} 32. c6
{[%clk 0:01:02.4]} 32... Qb8 {[%clk 0:00:55.1]} 33. Ne2 {[%clk 0:00:59.4]} 33...
Qc8 {[%clk 0:00:37.9]} 34. Nc3 {[%clk 0:00:58.5]} 34... Rb8 {[%clk 0:00:37.4]}
35. b5 {[%clk 0:00:55.6]} 35... f5 {[%clk 0:00:31.5]} 36. b6 {[%clk 0:00:49]}
36... f4 {[%clk 0:00:25.4]} 37. Bd2 {[%clk 0:00:46.2]} 37... Nxc6 {[%clk
0:00:20.7]} 38. dxc6 {[%clk 0:00:45.4]} 38... Qxc6 {[%clk 0:00:20.8]} 39. Nxe5
{[%clk 0:00:40.7]} 39... dxe5 {[%clk 0:00:15.9]} 40. Qxe7 {[%clk 0:00:41.6]}
40... Ng7 {[%clk 0:00:12.7]} 41. b7 {[%clk 0:00:32.7]} 41... Ne6 {[%clk
0:00:10.5]} 42. Nd5 {[%clk 0:00:28.1]} 1-0

[Event "*** Titled Tuesday Blitz"]
[Site "Chess.com"]
[Date "2021.03.30"]
[Round "5"]
[White "Trankuilizer"]
[Black "InitiatingASC"]
[Result "1-0"]
[WhiteElo "2596"]
[BlackElo "2434"]
[TimeControl "180+1"]
[EndTime "10:55:35 PDT"]
[Termination "Trankuilizer won on time"]

1. e4 {[%clk 0:02:59.6]} 1... e5 {[%clk 0:02:59.4]} 2. Nf3 {[%clk 0:02:59]} 2...
Nf6 {[%clk 0:02:59.7]} 3. Nxe5 {[%clk 0:02:57.4]} 3... d6 {[%clk 0:03:00.1]} 4.
Nf3 {[%clk 0:02:57.2]} 4... Nxe4 {[%clk 0:03:00.1]} 5. Nc3 {[%clk 0:02:57.6]}
5... Nxc3 {[%clk 0:02:59.2]} 6. dxc3 {[%clk 0:02:58.5]} 6... Be7 {[%clk
0:02:59.7]} 7. Be3 {[%clk 0:02:59.1]} 7... Nc6 {[%clk 0:02:56.2]} 8. Qd2 {[%clk
0:02:58.9]} 8... Bf5 {[%clk 0:02:56.1]} 9. Rg1 {[%clk 0:02:46.4]} 9... a6 {[%clk
0:02:51.5]} 10. O-O-O {[%clk 0:02:43.2]} 10... Qd7 {[%clk 0:02:50.9]} 11. h3
{[%clk 0:02:42.9]} 11... O-O-O {[%clk 0:02:48.6]} 12. g4 {[%clk 0:02:42.9]}
12... Be6 {[%clk 0:02:48.8]} 13. Nd4 {[%clk 0:02:41.2]} 13... Rhe8 {[%clk
0:02:15.1]} 14. b3 {[%clk 0:02:27.4]} 14... Bf6 {[%clk 0:02:08.5]} 15. Nxe6
{[%clk 0:02:23.4]} 15... fxe6 {[%clk 0:02:02.8]} 16. g5 {[%clk 0:02:21.6]} 16...
Be7 {[%clk 0:02:02.8]} 17. h4 {[%clk 0:02:21.1]} 17... d5 {[%clk 0:01:48.3]} 18.
Bh3 {[%clk 0:02:17.2]} 18... Kb8 {[%clk 0:01:42.6]} 19. Rge1 {[%clk 0:02:16.2]}
19... Bd6 {[%clk 0:01:39.9]} 20. Kb1 {[%clk 0:02:04.6]} 20... Qf7 {[%clk
0:01:39.9]} 21. Qd3 {[%clk 0:01:55.3]} 21... Ne5 {[%clk 0:01:22.2]} 22. Qe2
{[%clk 0:01:52.5]} 22... Nf3 {[%clk 0:01:12.5]} 23. Rh1 {[%clk 0:01:52.1]} 23...
Nxh4 {[%clk 0:01:12.3]} 24. Bxe6 {[%clk 0:01:47.9]} 24... Rxe6 {[%clk
0:01:06.3]} 25. Rxh4 {[%clk 0:01:47.8]} 25... h6 {[%clk 0:01:04]} 26. gxh6
{[%clk 0:01:43]} 26... gxh6 {[%clk 0:01:03.8]} 27. Rxh6 {[%clk 0:01:42.4]} 27...
Rde8 {[%clk 0:00:54.9]} 28. Rxe6 {[%clk 0:01:35.8]} 28... Rxe6 {[%clk
0:00:54.8]} 29. Qd3 {[%clk 0:01:30.2]} 29... c6 {[%clk 0:00:41.6]} 30. Qd4
{[%clk 0:01:30]} 30... Re4 {[%clk 0:00:38.7]} 31. Qa7+ {[%clk 0:01:29.3]} 31...
Kc8 {[%clk 0:00:39.1]} 32. Rh1 {[%clk 0:01:14.3]} 32... Re8 {[%clk 0:00:32.4]}
33. Qd4 {[%clk 0:00:59]} 33... Be5 {[%clk 0:00:31.5]} 34. Qd3 {[%clk 0:00:56]}
34... Qf6 {[%clk 0:00:19.3]} 35. Rh6 {[%clk 0:00:52.1]} 35... Qg7 {[%clk
0:00:16.5]} 36. Qf5+ {[%clk 0:00:47.9]} 36... Kb8 {[%clk 0:00:15.6]} 37. Rh7
{[%clk 0:00:45.5]} 37... Rf8 {[%clk 0:00:08.8]} 38. Qh3 {[%clk 0:00:33.5]} 38...
Qg1+ {[%clk 0:00:03.9]} 39. Kb2 {[%clk 0:00:33.1]} 39... Bc7 {[%clk 0:00:01.2]}
40. Qd7 {[%clk 0:00:27.8]} 40... Rc8 {[%clk 0:00:01.4]} 41. Bf4 {[%clk
0:00:22.5]} 1-0

[Event "*** Titled Tuesday Blitz"]
[Site "Chess.com"]
[Date "2021.03.30"]
[Round "5"]
[White "AniJak"]
[Black "esteban062000"]
[Result "1-0"]
[WhiteElo "2311"]
[BlackElo "2175"]
[TimeControl "180+1"]
[EndTime "10:55:36 PDT"]
[Termination "AniJak won by resignation"]

1. e4 {[%clk 0:03:00.9]} 1... c5 {[%clk 0:02:55.1]} 2. Nc3 {[%clk 0:03:00.7]}
2... Nc6 {[%clk 0:02:53.1]} 3. g3 {[%clk 0:03:01.1]} 3... g6 {[%clk 0:02:53.5]}
4. Bg2 {[%clk 0:03:01.3]} 4... Bg7 {[%clk 0:02:54.2]} 5. d3 {[%clk 0:03:00.5]}
5... e6 {[%clk 0:02:54.6]} 6. Be3 {[%clk 0:02:59.9]} 6... d6 {[%clk 0:02:53.7]}
7. Qd2 {[%clk 0:03:00.2]} 7... a6 {[%clk 0:02:53.5]} 8. h4 {[%clk 0:02:55.7]}
8... b5 {[%clk 0:02:49.9]} 9. h5 {[%clk 0:02:53.7]} 9... Bb7 {[%clk 0:02:49.7]}
10. hxg6 {[%clk 0:02:41]} 10... hxg6 {[%clk 0:02:49.1]} 11. Rxh8 {[%clk
0:02:41.2]} 11... Bxh8 {[%clk 0:02:50]} 12. Nh3 {[%clk 0:02:40.9]} 12... b4
{[%clk 0:02:44.9]} 13. Nd1 {[%clk 0:02:40.6]} 13... Nge7 {[%clk 0:02:36]} 14.
Kf1 {[%clk 0:02:37.7]} 14... a5 {[%clk 0:02:31.7]} 15. Kg1 {[%clk 0:02:37.4]}
15... Nd4 {[%clk 0:02:18.3]} 16. c3 {[%clk 0:02:33.5]} 16... Ndc6 {[%clk
0:02:16.2]} 17. Rc1 {[%clk 0:02:30.5]} 17... Qd7 {[%clk 0:02:09.6]} 18. Bg5
{[%clk 0:02:29.6]} 18... f6 {[%clk 0:02:03.6]} 19. Be3 {[%clk 0:02:20.9]} 19...
O-O-O {[%clk 0:02:02.7]} 20. d4 {[%clk 0:02:20.9]} 20... cxd4 {[%clk 0:01:55.9]}
21. cxd4 {[%clk 0:02:17.7]} 21... d5 {[%clk 0:01:56.1]} 22. a3 {[%clk
0:01:53.1]} 22... Kb8 {[%clk 0:01:52]} 23. axb4 {[%clk 0:01:50.7]} 23... Nxb4
{[%clk 0:01:48.1]} 24. e5 {[%clk 0:01:39.7]} 24... fxe5 {[%clk 0:01:34.1]} 25.
dxe5 {[%clk 0:01:40.6]} 25... Bxe5 {[%clk 0:01:33.7]} 26. Bb6 {[%clk 0:01:41.1]}
26... Rc8 {[%clk 0:01:14.6]} 27. Rxc8+ {[%clk 0:01:39.8]} 27... Qxc8 {[%clk
0:01:07.9]} 28. Bxa5 {[%clk 0:01:40]} 28... Nbc6 {[%clk 0:01:02.6]} 29. Bb6
{[%clk 0:01:39.7]} 29... Bc7 {[%clk 0:00:59.6]} 30. Bxc7+ {[%clk 0:01:36.5]}
30... Qxc7 {[%clk 0:01:00.5]} 31. Nf4 {[%clk 0:01:36.3]} 31... Bc8 {[%clk
0:00:28]} 32. Nc3 {[%clk 0:01:32.6]} 32... Ne5 {[%clk 0:00:24.1]} 33. Nb5 {[%clk
0:01:25.9]} 33... Qb6 {[%clk 0:00:20.6]} 34. Qb4 {[%clk 0:01:22.1]} 34... Nc4
{[%clk 0:00:20.5]} 35. Qxe7 {[%clk 0:01:16.7]} 35... Qxb5 {[%clk 0:00:21]} 36.
Nxe6 {[%clk 0:01:16.2]} 36... Bxe6 {[%clk 0:00:20.2]} 37. Qxe6 {[%clk
0:01:16.1]} 37... Qxb2 {[%clk 0:00:20.5]} 38. Qxd5 {[%clk 0:01:15]} 38... Qc1+
{[%clk 0:00:20.7]} 39. Kh2 {[%clk 0:01:06.5]} 39... Qh6+ {[%clk 0:00:20.4]} 40.
Bh3 {[%clk 0:01:06]} 40... Qc1 {[%clk 0:00:20.7]} 41. Qd8+ {[%clk 0:00:57.7]}
41... Kb7 {[%clk 0:00:20.6]} 42. Bc8+ {[%clk 0:00:53.8]} 42... Kc6 {[%clk
0:00:19.6]} 43. Qd7+ {[%clk 0:00:53.7]} 43... Kc5 {[%clk 0:00:19.8]} 44. Qc7+
{[%clk 0:00:52.5]} 44... Kb4 {[%clk 0:00:20]} 45. Qb7+ {[%clk 0:00:49.4]} 45...
Kc3 {[%clk 0:00:20.3]} 46. Qf3+ {[%clk 0:00:48.8]} 46... Kd4 {[%clk 0:00:19.6]}
47. Bh3 {[%clk 0:00:48.1]} 47... Qd2 {[%clk 0:00:18.8]} 48. Bg2 {[%clk
0:00:47.2]} 48... Ne5 {[%clk 0:00:18]} 49. Qd5+ {[%clk 0:00:46.9]} 49... Kc3
{[%clk 0:00:18.4]} 50. Qxe5+ {[%clk 0:00:47.2]} 50... Qd4 {[%clk 0:00:17.2]} 51.
Qxd4+ {[%clk 0:00:47.3]} 51... Kxd4 {[%clk 0:00:18.1]} 52. Kh3 {[%clk
0:00:47.3]} 52... Ke5 {[%clk 0:00:19]} 53. Kg4 {[%clk 0:00:47.6]} 53... Kf6
{[%clk 0:00:19.9]} 54. Kf4 {[%clk 0:00:47.6]} 54... Kg7 {[%clk 0:00:20.8]} 55.
Kg5 {[%clk 0:00:47.9]} 55... Kh7 {[%clk 0:00:21.3]} 56. Be4 {[%clk 0:00:48.6]}
56... Kg7 {[%clk 0:00:22.2]} 57. Bxg6 {[%clk 0:00:49.1]} 57... Kg8 {[%clk
0:00:22.1]} 58. f4 {[%clk 0:00:50]} 58... Kh8 {[%clk 0:00:23]} 59. f5 {[%clk
0:00:50.4]} 59... Kg7 {[%clk 0:00:23.9]} 60. f6+ {[%clk 0:00:50.8]} 60... Kg8
{[%clk 0:00:24.8]} 61. f7+ {[%clk 0:00:50.4]} 61... Kf8 {[%clk 0:00:25.7]} 62.
Kh6 {[%clk 0:00:50.7]} 1-0

[Event "*** Titled Tuesday Blitz"]
[Site "Chess.com"]
[Date "2021.03.30"]
[Round "5"]
[White "GM_LOADING"]
[Black "seorobert1971"]
[Result "0-1"]
[WhiteElo "2533"]
[BlackElo "2736"]
[TimeControl "180+1"]
[EndTime "10:55:38 PDT"]
[Termination "seorobert1971 won by resignation"]

1. e4 {[%clk 0:02:53.7]} 1... e6 {[%clk 0:03:00.9]} 2. d4 {[%clk 0:02:50.8]}
2... d5 {[%clk 0:03:01.8]} 3. Nc3 {[%clk 0:02:50.6]} 3... Nf6 {[%clk 0:03:00.9]}
4. Bg5 {[%clk 0:02:50.3]} 4... Bb4 {[%clk 0:02:59.8]} 5. e5 {[%clk 0:02:49.3]}
5... h6 {[%clk 0:02:59.5]} 6. Be3 {[%clk 0:02:49.8]} 6... Ne4 {[%clk 0:02:58.9]}
7. Qg4 {[%clk 0:02:50.4]} 7... Kf8 {[%clk 0:02:50.8]} 8. a3 {[%clk 0:02:49.3]}
8... Bxc3+ {[%clk 0:02:47.3]} 9. bxc3 {[%clk 0:02:49.5]} 9... Nxc3 {[%clk
0:02:45.1]} 10. Bd3 {[%clk 0:02:49.9]} 10... b6 {[%clk 0:02:36.6]} 11. h4 {[%clk
0:02:41]} 11... Ba6 {[%clk 0:02:36.1]} 12. Rh3 {[%clk 0:02:39.9]} 12... Bxd3
{[%clk 0:02:35.7]} 13. cxd3 {[%clk 0:02:40.8]} 13... h5 {[%clk 0:02:12.8]} 14.
Qf4 {[%clk 0:02:23.3]} 14... Nd7 {[%clk 0:02:10.8]} 15. Rf3 {[%clk 0:02:21.8]}
15... Qe7 {[%clk 0:02:09.1]} 16. Nh3 {[%clk 0:02:22]} 16... c5 {[%clk
0:02:02.7]} 17. Ng5 {[%clk 0:02:22]} 17... f6 {[%clk 0:02:02]} 18. exf6 {[%clk
0:02:18.8]} 18... gxf6 {[%clk 0:02:01.8]} 19. Bd2 {[%clk 0:02:06.7]} 19... Nb5
{[%clk 0:01:51.2]} 20. dxc5 {[%clk 0:01:47.1]} 20... bxc5 {[%clk 0:01:51]} 21.
Kf1 {[%clk 0:01:20.4]} 21... Nd4 {[%clk 0:01:40.6]} 22. Re1 {[%clk 0:01:19.4]}
22... e5 {[%clk 0:01:26]} 23. Qg3 {[%clk 0:01:18.5]} 23... Nxf3 {[%clk
0:01:22.8]} 24. Qxf3 {[%clk 0:01:19.4]} 24... Qd6 {[%clk 0:01:20.6]} 25. Qf5
{[%clk 0:01:16.8]} 25... Ke7 {[%clk 0:01:16]} 26. d4 {[%clk 0:01:12.1]} 26...
Raf8 {[%clk 0:01:06.6]} 27. dxc5 {[%clk 0:01:08.4]} 27... Qc6 {[%clk 0:01:02.7]}
28. Nh3 {[%clk 0:00:51.7]} 28... Kd8 {[%clk 0:00:57.2]} 29. Rb1 {[%clk 0:00:49]}
29... Kc8 {[%clk 0:00:46.5]} 30. Nf4 {[%clk 0:00:40.2]} 30... exf4 {[%clk
0:00:38.2]} 31. Bxf4 {[%clk 0:00:41.1]} 31... Kd8 {[%clk 0:00:37.7]} 32. Bd6
{[%clk 0:00:28.7]} 32... Re8 {[%clk 0:00:35.4]} 33. a4 {[%clk 0:00:16.2]} 33...
d4 {[%clk 0:00:20.5]} 34. a5 {[%clk 0:00:12.9]} 34... a6 {[%clk 0:00:20.3]} 35.
Kg1 {[%clk 0:00:09.4]} 35... Qe4 {[%clk 0:00:17.2]} 36. Rb7 {[%clk 0:00:06]}
36... Qxf5 {[%clk 0:00:16.3]} 0-1

[Event "*** Titled Tuesday Blitz"]
[Site "Chess.com"]
[Date "2021.03.30"]
[Round "5"]
[White "MartinHollan"]
[Black "Gloomy_Wanderer"]
[Result "0-1"]
[WhiteElo "2438"]
[BlackElo "2703"]
[TimeControl "180+1"]
[EndTime "10:55:39 PDT"]
[Termination "Gloomy_Wanderer won on time"]

1. d4 {[%clk 0:03:00.9]} 1... Nf6 {[%clk 0:02:59.7]} 2. Nf3 {[%clk 0:03:01.8]}
2... e6 {[%clk 0:03:00]} 3. c4 {[%clk 0:03:01.7]} 3... d5 {[%clk 0:03:00.1]} 4.
g3 {[%clk 0:03:01.8]} 4... dxc4 {[%clk 0:03:00.1]} 5. Bg2 {[%clk 0:02:59.5]}
5... Bb4+ {[%clk 0:02:59.8]} 6. Nbd2 {[%clk 0:02:58.6]} 6... b5 {[%clk
0:02:56.7]} 7. O-O {[%clk 0:02:58]} 7... O-O {[%clk 0:02:46.4]} 8. a4 {[%clk
0:02:54.6]} 8... c6 {[%clk 0:02:46.8]} 9. Ne5 {[%clk 0:02:46.7]} 9... Nd5 {[%clk
0:02:45.7]} 10. e4 {[%clk 0:02:41.6]} 10... Nb6 {[%clk 0:02:45.4]} 11. Ndf3
{[%clk 0:02:37.9]} 11... f6 {[%clk 0:02:37.7]} 12. Ng4 {[%clk 0:02:36.9]} 12...
Nxa4 {[%clk 0:02:34.3]} 13. Ne3 {[%clk 0:02:34.5]} 13... Nb6 {[%clk 0:02:33]}
14. d5 {[%clk 0:02:33]} 14... cxd5 {[%clk 0:02:29.6]} 15. exd5 {[%clk
0:02:32.8]} 15... e5 {[%clk 0:02:30.1]} 16. Nh4 {[%clk 0:02:26.6]} 16... Bb7
{[%clk 0:02:15]} 17. Nhf5 {[%clk 0:02:19]} 17... g6 {[%clk 0:02:11.1]} 18. Nh6+
{[%clk 0:02:07.7]} 18... Kg7 {[%clk 0:02:10]} 19. Nhf5+ {[%clk 0:01:41.8]} 19...
gxf5 {[%clk 0:02:03]} 20. Nxf5+ {[%clk 0:01:41.6]} 20... Kh8 {[%clk 0:02:03]}
21. Bh6 {[%clk 0:01:41.3]} 21... Rg8 {[%clk 0:01:58.8]} 22. Qh5 {[%clk
0:01:30.6]} 22... N8d7 {[%clk 0:01:26]} 23. Qf7 {[%clk 0:01:03.4]} 23... Bf8
{[%clk 0:01:21.6]} 24. Be4 {[%clk 0:01:01.5]} 24... Bxh6 {[%clk 0:01:16.3]} 25.
Nxh6 {[%clk 0:00:56.6]} 25... Rg7 {[%clk 0:01:16.4]} 26. Qe6 {[%clk 0:00:47.7]}
26... Qf8 {[%clk 0:01:08.3]} 27. Qh3 {[%clk 0:00:39.3]} 27... Nc5 {[%clk
0:01:04.2]} 28. Bc2 {[%clk 0:00:37.5]} 28... Bxd5 {[%clk 0:00:58.2]} 29. Nf5
{[%clk 0:00:37.7]} 29... Rd7 {[%clk 0:00:53.2]} 30. Rad1 {[%clk 0:00:36.1]}
30... Rad8 {[%clk 0:00:53]} 31. Ne3 {[%clk 0:00:31.1]} 31... Be6 {[%clk
0:00:48.3]} 32. Qh5 {[%clk 0:00:30.8]} 32... Qf7 {[%clk 0:00:41.4]} 33. Rxd7
{[%clk 0:00:24.4]} 33... Rxd7 {[%clk 0:00:40.7]} 34. Qh6 {[%clk 0:00:23]} 34...
Nd3 {[%clk 0:00:34.9]} 35. Ra1 {[%clk 0:00:16.9]} 35... Nd5 {[%clk 0:00:31.3]}
36. Ng2 {[%clk 0:00:11.6]} 36... N5b4 {[%clk 0:00:26.2]} 37. Bd1 {[%clk
0:00:06.7]} 37... Qg7 {[%clk 0:00:22.8]} 38. Qh4 {[%clk 0:00:06]} 38... Qg5
{[%clk 0:00:22.7]} 0-1